[Event "*** Titled Tuesday Blitz"]
[Site "Chess.com"]
[Date "2019.10.01"]
[Round "2"]
[White "Saitama_Hero"]
[Black "AminMolaei"]
[Result "0-1"]
[WhiteElo "2335"]
[BlackElo "2695"]
[TimeControl "180+2"]
[EndTime "13:23:49 PDT"]
[Termination "AminMolaei won by resignation"]

1. b3 {[%clk 0:03:01.9]} 1... e5 {[%clk 0:02:57.7]} 2. Bb2 {[%clk 0:03:03.8]}
2... Nc6 {[%clk 0:02:58.9]} 3. Nf3 {[%clk 0:03:04.9]} 3... e4 {[%clk 0:03:00.1]}
4. Ne5 {[%clk 0:03:03.9]} 4... d5 {[%clk 0:02:58.9]} 5. e3 {[%clk 0:03:03.7]}
5... Nxe5 {[%clk 0:02:57.3]} 6. Bxe5 {[%clk 0:03:02.9]} 6... c6 {[%clk
0:02:58.6]} 7. c4 {[%clk 0:03:04.1]} 7... Qg5 {[%clk 0:02:58.3]} 8. Bf4 {[%clk
0:02:54]} 8... Qf6 {[%clk 0:02:55.6]} 9. Nc3 {[%clk 0:02:55.2]} 9... Bb4 {[%clk
0:02:53.4]} 10. Rc1 {[%clk 0:02:47.8]} 10... Ne7 {[%clk 0:02:49.6]} 11. cxd5
{[%clk 0:02:47.4]} 11... Bxc3 {[%clk 0:02:50.3]} 12. dxc3 {[%clk 0:02:37]} 12...
Nxd5 {[%clk 0:02:51.3]} 13. Qd2 {[%clk 0:02:33.5]} 13... O-O {[%clk 0:02:47.3]}
14. Bg3 {[%clk 0:02:31]} 14... h5 {[%clk 0:02:46.2]} 15. h3 {[%clk 0:02:28.7]}
15... h4 {[%clk 0:02:45.5]} 16. Bh2 {[%clk 0:02:28.9]} 16... Qg6 {[%clk
0:02:38.7]} 17. c4 {[%clk 0:02:27.1]} 17... Nf6 {[%clk 0:02:31.3]} 18. Qd6
{[%clk 0:02:20.5]} 18... a5 {[%clk 0:01:22.5]} 19. Qf4 {[%clk 0:01:49.9]} 19...
a4 {[%clk 0:01:22.6]} 20. b4 {[%clk 0:01:43.7]} 20... Be6 {[%clk 0:01:18.6]} 21.
Qxh4 {[%clk 0:01:42.6]} 21... Rfd8 {[%clk 0:01:19.2]} 22. Be5 {[%clk 0:01:31.7]}
22... Nd7 {[%clk 0:01:15.9]} 23. Bd4 {[%clk 0:01:10]} 23... b6 {[%clk
0:01:15.9]} 24. Be2 {[%clk 0:00:48]} 24... c5 {[%clk 0:01:13.6]} 25. Bh5 {[%clk
0:00:37.4]} 25... Qxg2 {[%clk 0:00:53.4]} 26. Ke2 {[%clk 0:00:35.4]} 26... Bxc4+
{[%clk 0:00:16.3]} 27. Kd2 {[%clk 0:00:18.8]} 27... cxd4 {[%clk 0:00:08.8]} 28.
Rcg1 {[%clk 0:00:20.2]} 28... dxe3+ {[%clk 0:00:09.9]} 29. Kxe3 {[%clk
0:00:20.1]} 29... Qxg1 {[%clk 0:00:04.2]} 30. Rxg1 {[%clk 0:00:22]} 30... Ne5
{[%clk 0:00:04.9]} 31. Qf6 {[%clk 0:00:21.2]} 31... Rd3+ {[%clk 0:00:03.5]} 32.
Kxe4 {[%clk 0:00:21.6]} 32... Bd5+ {[%clk 0:00:03.9]} 33. Kxe5 {[%clk
0:00:21.5]} 33... Re8+ {[%clk 0:00:05.4]} 34. Kd6 {[%clk 0:00:18.9]} 34... Bg2+
{[%clk 0:00:05.2]} 35. Kc7 {[%clk 0:00:18.3]} 35... gxf6 {[%clk 0:00:06.6]} 36.
Rxg2+ {[%clk 0:00:17.4]} 36... Kf8 {[%clk 0:00:08.3]} 37. Kxb6 {[%clk
0:00:17.6]} 37... Rxh3 {[%clk 0:00:09.4]} 38. Bg4 {[%clk 0:00:14.6]} 38... Ra3
{[%clk 0:00:10.8]} 39. f3 {[%clk 0:00:12.7]} 39... f5 {[%clk 0:00:12.1]} 40.
Bxf5 {[%clk 0:00:12.5]} 40... Rxf3 {[%clk 0:00:13.3]} 41. Bd7 {[%clk 0:00:14]}
41... Re7 {[%clk 0:00:13.7]} 42. Bxa4 {[%clk 0:00:14.8]} 42... f5 {[%clk
0:00:14.3]} 43. Bb3 {[%clk 0:00:14.8]} 43... Rg7 {[%clk 0:00:04.2]} 44. Rc2
{[%clk 0:00:12.9]} 44... Rg6+ {[%clk 0:00:04.2]} 45. Kb5 {[%clk 0:00:13.4]}
45... f4 {[%clk 0:00:05.2]} 46. a4 {[%clk 0:00:09.4]} 46... Rxb3 {[%clk
0:00:05.4]} 47. Rc8+ {[%clk 0:00:08.7]} 47... Kg7 {[%clk 0:00:06.6]} 48. Rc7+
{[%clk 0:00:10.4]} 48... Kh6 {[%clk 0:00:08.1]} 49. Rc5 {[%clk 0:00:11.4]} 49...
f3 {[%clk 0:00:09.1]} 50. a5 {[%clk 0:00:11]} 50... f2 {[%clk 0:00:09.9]} 0-1

[Event "*** Titled Tuesday Blitz"]
[Site "Chess.com"]
[Date "2019.10.01"]
[Round "2"]
[White "TST2014"]
[Black "Dr-Bassem"]
[Result "1-0"]
[WhiteElo "2567"]
[BlackElo "2809"]
[TimeControl "180+2"]
[EndTime "13:23:51 PDT"]
[Termination "TST2014 won on time"]

1. d4 {[%clk 0:01:41.2]} 1... Nf6 {[%clk 0:02:55.7]} 2. c4 {[%clk 0:01:42.1]}
2... g6 {[%clk 0:02:55.8]} 3. Nf3 {[%clk 0:01:43.2]} 3... Bg7 {[%clk 0:02:57.3]}
4. Nc3 {[%clk 0:01:44.5]} 4... O-O {[%clk 0:02:58.9]} 5. e4 {[%clk 0:01:46]}
5... d6 {[%clk 0:03:00.6]} 6. Be2 {[%clk 0:01:47.5]} 6... e5 {[%clk 0:03:01.3]}
7. O-O {[%clk 0:01:48.7]} 7... Nc6 {[%clk 0:03:02.8]} 8. d5 {[%clk 0:01:49]}
8... Ne7 {[%clk 0:03:04.3]} 9. b4 {[%clk 0:01:50.4]} 9... a5 {[%clk 0:03:02.7]}
10. bxa5 {[%clk 0:01:50.8]} 10... Rxa5 {[%clk 0:02:56]} 11. Nd2 {[%clk
0:01:51.6]} 11... c5 {[%clk 0:02:44]} 12. a4 {[%clk 0:01:52.4]} 12... Ne8 {[%clk
0:02:40.2]} 13. Ra3 {[%clk 0:01:52.7]} 13... f5 {[%clk 0:02:41.3]} 14. Nb3
{[%clk 0:01:47.7]} 14... Ra6 {[%clk 0:02:40]} 15. a5 {[%clk 0:01:43]} 15... Nf6
{[%clk 0:02:39.9]} 16. Bd3 {[%clk 0:01:42.4]} 16... f4 {[%clk 0:02:36]} 17. f3
{[%clk 0:01:35.9]} 17... g5 {[%clk 0:02:34.3]} 18. Na4 {[%clk 0:01:37.1]} 18...
Ng6 {[%clk 0:02:00.3]} 19. Nb6 {[%clk 0:01:36.4]} 19... Rxb6 {[%clk 0:01:38.4]}
20. axb6 {[%clk 0:01:37.1]} 20... g4 {[%clk 0:01:37.4]} 21. Ra8 {[%clk
0:01:36.9]} 21... h5 {[%clk 0:01:37.4]} 22. Na5 {[%clk 0:01:35]} 22... Qxb6
{[%clk 0:01:32.1]} 23. Qb3 {[%clk 0:01:35.1]} 23... Qc7 {[%clk 0:01:31.5]} 24.
Bd2 {[%clk 0:01:32.3]} 24... g3 {[%clk 0:01:12.1]} 25. Rb1 {[%clk 0:01:31.6]}
25... gxh2+ {[%clk 0:01:11.5]} 26. Kh1 {[%clk 0:01:29.4]} 26... h4 {[%clk
0:01:05.2]} 27. Nxb7 {[%clk 0:01:23.7]} 27... h3 {[%clk 0:01:06.3]} 28. Bf1
{[%clk 0:01:22.2]} 28... Nh4 {[%clk 0:00:55.4]} 29. Qb6 {[%clk 0:01:22.9]} 29...
Qxb6 {[%clk 0:00:36.7]} 30. Rxb6 {[%clk 0:01:23.1]} 30... hxg2+ {[%clk
0:00:37.8]} 31. Bxg2 {[%clk 0:01:23.9]} 31... Nxg2 {[%clk 0:00:39.7]} 32. Nxd6
{[%clk 0:01:24]} 32... Nh4 {[%clk 0:00:32]} 33. Nxc8 {[%clk 0:01:16.8]} 33...
Nxf3 {[%clk 0:00:32.6]} 34. Ne7+ {[%clk 0:01:07.8]} 34... Kf7 {[%clk 0:00:33.8]}
35. Ra7 {[%clk 0:01:04.9]} 35... Ra8 {[%clk 0:00:11.3]} 36. Rxa8 {[%clk
0:00:52.9]} 36... Nxe4 {[%clk 0:00:12.5]} 37. Be1 {[%clk 0:00:50]} 37... Nxe1
{[%clk 0:00:13.7]} 38. Kxh2 {[%clk 0:00:50.9]} 38... f3 {[%clk 0:00:13.4]} 39.
Ra7 {[%clk 0:00:51.1]} 39... Bf6 {[%clk 0:00:13.5]} 40. Nf5+ {[%clk 0:00:47.8]}
40... Kg6 {[%clk 0:00:14.4]} 41. Ne3 {[%clk 0:00:45]} 41... Kg5 {[%clk 0:00:12]}
42. Rf7 {[%clk 0:00:43.7]} 42... f2 {[%clk 0:00:10.2]} 43. Rbxf6 {[%clk
0:00:39]} 43... Nxf6 {[%clk 0:00:10.8]} 44. Kg3 {[%clk 0:00:35.8]} 44... Ne4+
{[%clk 0:00:10.6]} 45. Kh2 {[%clk 0:00:35.8]} 45... Nf6 {[%clk 0:00:10.2]} 46.
Nf1 {[%clk 0:00:36.4]} 46... Kg6 {[%clk 0:00:06.9]} 47. Rf8 {[%clk 0:00:36.8]}
47... Kg7 {[%clk 0:00:08]} 48. Rc8 {[%clk 0:00:37.2]} 48... Ne4 {[%clk
0:00:08.8]} 49. Re8 {[%clk 0:00:35.8]} 49... Kf7 {[%clk 0:00:06.6]} 50. Rc8
{[%clk 0:00:35.7]} 50... Ke7 {[%clk 0:00:07.6]} 51. Rc7+ {[%clk 0:00:36.6]}
51... Kd6 {[%clk 0:00:06.7]} 52. Rf7 {[%clk 0:00:37.6]} 52... Nd3 {[%clk
0:00:03.7]} 53. Kg2 {[%clk 0:00:37.3]} 53... Nc3 {[%clk 0:00:04.8]} 54. Ne3
{[%clk 0:00:34.9]} 54... e4 {[%clk 0:00:05.9]} 55. Nf5+ {[%clk 0:00:35.2]} 55...
Ke5 {[%clk 0:00:07.2]} 56. d6 {[%clk 0:00:36.6]} 1-0

[Event "*** Titled Tuesday Blitz"]
[Site "Chess.com"]
[Date "2019.10.01"]
[Round "2"]
[White "MalyDominator"]
[Black "MarcoRiehle"]
[Result "0-1"]
[WhiteElo "2297"]
[BlackElo "2592"]
[TimeControl "180+2"]
[EndTime "13:23:52 PDT"]
[Termination "MarcoRiehle won by resignation"]

1. e4 {[%clk 0:02:59.4]} 1... e5 {[%clk 0:03:00.4]} 2. Nf3 {[%clk 0:02:59.3]}
2... Nf6 {[%clk 0:03:01.6]} 3. Nxe5 {[%clk 0:02:59.3]} 3... Nxe4 {[%clk
0:03:01.4]} 4. Qe2 {[%clk 0:02:52.3]} 4... Qe7 {[%clk 0:03:01.9]} 5. Qxe4 {[%clk
0:02:52.9]} 5... d6 {[%clk 0:03:02.9]} 6. d4 {[%clk 0:02:53.6]} 6... dxe5 {[%clk
0:03:04.3]} 7. Qxe5 {[%clk 0:02:54.7]} 7... Qxe5+ {[%clk 0:03:04.8]} 8. dxe5
{[%clk 0:02:56.3]} 8... Bf5 {[%clk 0:03:06.7]} 9. Bd3 {[%clk 0:02:56.4]} 9...
Bxd3 {[%clk 0:03:07.8]} 10. cxd3 {[%clk 0:02:58.2]} 10... Nc6 {[%clk 0:03:09.4]}
11. f4 {[%clk 0:02:56.4]} 11... Nb4 {[%clk 0:03:10.7]} 12. Na3 {[%clk
0:02:53.3]} 12... Nxd3+ {[%clk 0:03:08.9]} 13. Ke2 {[%clk 0:02:53.5]} 13...
O-O-O {[%clk 0:03:09.6]} 14. Rd1 {[%clk 0:02:53.5]} 14... Nxc1+ {[%clk
0:03:04.3]} 15. Raxc1 {[%clk 0:02:55.3]} 15... Bxa3 {[%clk 0:03:02.2]} 16. bxa3
{[%clk 0:02:57.1]} 16... Rhe8 {[%clk 0:02:52.9]} 17. Kf3 {[%clk 0:02:53]} 17...
Re6 {[%clk 0:02:46.8]} 18. g4 {[%clk 0:02:47.1]} 18... Ra6 {[%clk 0:02:45.7]}
19. Rxd8+ {[%clk 0:02:46.3]} 19... Kxd8 {[%clk 0:02:43]} 20. Rc3 {[%clk
0:02:48]} 20... Ra4 {[%clk 0:02:41.7]} 21. f5 {[%clk 0:02:41.4]} 21... c6 {[%clk
0:02:37.6]} 22. Re3 {[%clk 0:02:36.2]} 22... Kd7 {[%clk 0:02:27]} 23. h3 {[%clk
0:02:13.3]} 23... c5 {[%clk 0:02:23.1]} 24. Ke2 {[%clk 0:02:13.6]} 24... b5
{[%clk 0:02:12.3]} 25. Kd2 {[%clk 0:02:14.4]} 25... Rf4 {[%clk 0:02:07.1]} 26.
Kc3 {[%clk 0:02:06.8]} 26... h5 {[%clk 0:02:03.6]} 27. e6+ {[%clk 0:01:59.7]}
27... fxe6 {[%clk 0:01:54.8]} 28. fxe6+ {[%clk 0:01:58.4]} 28... Ke7 {[%clk
0:01:55.8]} 29. gxh5 {[%clk 0:01:56.6]} 29... Rh4 {[%clk 0:01:49]} 30. Re5
{[%clk 0:01:43.2]} 30... Rxh3+ {[%clk 0:01:48.8]} 31. Kb2 {[%clk 0:01:44.2]}
31... Rh2+ {[%clk 0:01:44.2]} 32. Kb1 {[%clk 0:01:43.5]} 32... c4 {[%clk
0:01:37.7]} 33. Rxb5 {[%clk 0:01:39.2]} 33... Kxe6 {[%clk 0:01:36.7]} 34. Rc5
{[%clk 0:01:28.8]} 34... Kf6 {[%clk 0:01:26.1]} 35. Rxc4 {[%clk 0:01:00]} 35...
Rxh5 {[%clk 0:01:20.3]} 36. Ra4 {[%clk 0:00:59]} 36... a5 {[%clk 0:01:18.7]} 37.
Kc2 {[%clk 0:00:58.5]} 37... Rf5 {[%clk 0:01:07.2]} 38. Kd3 {[%clk 0:00:53.1]}
38... g5 {[%clk 0:01:06.5]} 39. Ke3 {[%clk 0:00:52.1]} 39... Kg6 {[%clk
0:01:04.3]} 40. Rc4 {[%clk 0:00:40]} 40... Kh5 {[%clk 0:01:04.3]} 41. a4 {[%clk
0:00:34.2]} 41... g4 {[%clk 0:01:02.4]} 42. Rc8 {[%clk 0:00:21.1]} 42... g3
{[%clk 0:01:01.2]} 43. Rg8 {[%clk 0:00:16.8]} 43... Kh4 {[%clk 0:00:59.3]} 44.
Rh8+ {[%clk 0:00:14.1]} 44... Kg4 {[%clk 0:01:00]} 45. Ke2 {[%clk 0:00:07.1]}
45... g2 {[%clk 0:00:56.8]} 46. Rg8+ {[%clk 0:00:07.4]} 46... Kh3 {[%clk
0:00:57]} 47. Rh8+ {[%clk 0:00:08.2]} 47... Kg3 {[%clk 0:00:57.6]} 48. Rg8+
{[%clk 0:00:08.9]} 48... Kh2 {[%clk 0:00:58.3]} 49. Rh8+ {[%clk 0:00:10.1]}
49... Kg1 {[%clk 0:00:58.8]} 50. Rg8 {[%clk 0:00:07.5]} 50... Rf4 {[%clk
0:00:45.1]} 51. Rg5 {[%clk 0:00:06.3]} 51... Rxa4 {[%clk 0:00:45.6]} 0-1

[Event "*** Titled Tuesday Blitz"]
[Site "Chess.com"]
[Date "2019.10.01"]
[Round "2"]
[White "GianmarcoVaR"]
[Black "Sanan_Sjugirov"]
[Result "0-1"]
[WhiteElo "2606"]
[BlackElo "2950"]
[TimeControl "180+2"]
[EndTime "13:23:57 PDT"]
[Termination "Sanan_Sjugirov won on time"]

1. d4 {[%clk 0:02:57.7]} 1... Nf6 {[%clk 0:03:00.1]} 2. c4 {[%clk 0:02:58.9]}
2... e6 {[%clk 0:02:57.8]} 3. g3 {[%clk 0:02:59.6]} 3... d5 {[%clk 0:02:57.7]}
4. Bg2 {[%clk 0:03:00.4]} 4... Bb4+ {[%clk 0:02:58.5]} 5. Bd2 {[%clk 0:03:01]}
5... Be7 {[%clk 0:02:59.2]} 6. Nf3 {[%clk 0:03:01.8]} 6... O-O {[%clk
0:03:00.1]} 7. O-O {[%clk 0:03:03.2]} 7... c6 {[%clk 0:03:00.8]} 8. Qc2 {[%clk
0:03:04.4]} 8... b6 {[%clk 0:03:00.9]} 9. Bf4 {[%clk 0:03:05.5]} 9... Ba6 {[%clk
0:02:58.1]} 10. Ne5 {[%clk 0:02:33.6]} 10... Nfd7 {[%clk 0:02:56.7]} 11. cxd5
{[%clk 0:02:21.9]} 11... cxd5 {[%clk 0:02:54.5]} 12. Nd3 {[%clk 0:02:16.2]}
12... Bb7 {[%clk 0:02:48.1]} 13. Nd2 {[%clk 0:01:50.7]} 13... Nc6 {[%clk
0:02:43.8]} 14. Nf3 {[%clk 0:01:52.1]} 14... Rc8 {[%clk 0:02:42.2]} 15. Qd2
{[%clk 0:01:43.2]} 15... Nf6 {[%clk 0:02:38.1]} 16. Rfc1 {[%clk 0:01:44.3]}
16... Ne4 {[%clk 0:02:35.8]} 17. Qd1 {[%clk 0:01:44.8]} 17... Bf6 {[%clk
0:02:01.7]} 18. e3 {[%clk 0:01:39.4]} 18... Be7 {[%clk 0:01:56.6]} 19. h4 {[%clk
0:01:34]} 19... h6 {[%clk 0:01:55.6]} 20. h5 {[%clk 0:01:35.1]} 20... Bd6 {[%clk
0:01:46.7]} 21. Rc2 {[%clk 0:01:30.4]} 21... Bxf4 {[%clk 0:01:43.9]} 22. Nxf4
{[%clk 0:01:30.8]} 22... Qd6 {[%clk 0:01:14]} 23. Rac1 {[%clk 0:01:26.1]} 23...
Nf6 {[%clk 0:01:06.8]} 24. Bf1 {[%clk 0:01:12.9]} 24... Rc7 {[%clk 0:01:02.8]}
25. Ne5 {[%clk 0:01:04.2]} 25... Rfc8 {[%clk 0:01:03.4]} 26. Ned3 {[%clk
0:00:56.5]} 26... Ba6 {[%clk 0:00:48.7]} 27. Be2 {[%clk 0:00:54.7]} 27... Ne7
{[%clk 0:00:43.9]} 28. Rxc7 {[%clk 0:00:39.4]} 28... Rxc7 {[%clk 0:00:45.8]} 29.
Rxc7 {[%clk 0:00:40.7]} 29... Qxc7 {[%clk 0:00:47.7]} 30. Qc1 {[%clk 0:00:42.1]}
30... Qxc1+ {[%clk 0:00:37.5]} 31. Nxc1 {[%clk 0:00:43.4]} 31... Bxe2 {[%clk
0:00:39]} 32. Ncxe2 {[%clk 0:00:45.3]} 32... Nf5 {[%clk 0:00:36.9]} 33. Nc3
{[%clk 0:00:44.4]} 33... Nd6 {[%clk 0:00:37.9]} 34. Kf1 {[%clk 0:00:37.7]} 34...
Kf8 {[%clk 0:00:35.1]} 35. Ke2 {[%clk 0:00:38.6]} 35... Ke8 {[%clk 0:00:35.9]}
36. f3 {[%clk 0:00:39.4]} 36... Kd7 {[%clk 0:00:26.1]} 37. g4 {[%clk 0:00:40.8]}
37... Kc6 {[%clk 0:00:23.6]} 38. Nd3 {[%clk 0:00:42.2]} 38... Nd7 {[%clk
0:00:24.6]} 39. Kd2 {[%clk 0:00:19.3]} 39... Nc4+ {[%clk 0:00:24.7]} 40. Ke2
{[%clk 0:00:20.5]} 40... a5 {[%clk 0:00:22.6]} 41. f4 {[%clk 0:00:15]} 41... Nf6
{[%clk 0:00:19.3]} 42. b3 {[%clk 0:00:15.5]} 42... Nd6 {[%clk 0:00:16.2]} 43.
Ne5+ {[%clk 0:00:16.6]} 43... Kc7 {[%clk 0:00:17.7]} 44. a4 {[%clk 0:00:15.7]}
44... Kd8 {[%clk 0:00:13.4]} 45. Kf3 {[%clk 0:00:08.5]} 45... Ke8 {[%clk
0:00:13.6]} 46. Ke2 {[%clk 0:00:04.3]} 46... Nfe4 {[%clk 0:00:09.9]} 47. Nxe4
{[%clk 0:00:04.7]} 47... Nxe4 {[%clk 0:00:11.8]} 48. Kd3 {[%clk 0:00:04.2]}
48... f6 {[%clk 0:00:11.9]} 49. Nf3 {[%clk 0:00:02.5]} 49... Nf2+ {[%clk
0:00:12.2]} 50. Kc3 {[%clk 0:00:03.9]} 50... Nxg4 {[%clk 0:00:13.1]} 51. Kd2
{[%clk 0:00:04.8]} 51... Nf2 {[%clk 0:00:13.7]} 52. Ke2 {[%clk 0:00:03.5]} 52...
Ne4 {[%clk 0:00:14.7]} 0-1

[Event "*** Titled Tuesday Blitz"]
[Site "Chess.com"]
[Date "2019.10.01"]
[Round "2"]
[White "abubakrtagelsir"]
[Black "gena217"]
[Result "0-1"]
[WhiteElo "2398"]
[BlackElo "2898"]
[TimeControl "180+2"]
[EndTime "13:24:03 PDT"]
[Termination "gena217 won by resignation"]

1. e4 {[%clk 0:02:51.8]} 1... c6 {[%clk 0:03:00.4]} 2. d4 {[%clk 0:02:49.7]}
2... d5 {[%clk 0:03:02.3]} 3. f3 {[%clk 0:02:50.7]} 3... e6 {[%clk 0:03:01.2]}
4. Nc3 {[%clk 0:02:51]} 4... Bb4 {[%clk 0:03:01.9]} 5. Qd3 {[%clk 0:02:51.7]}
5... Ne7 {[%clk 0:02:58]} 6. Be3 {[%clk 0:02:45.3]} 6... b6 {[%clk 0:02:55.9]}
7. O-O-O {[%clk 0:02:39]} 7... O-O {[%clk 0:02:52.9]} 8. Nge2 {[%clk 0:02:37.9]}
8... a5 {[%clk 0:02:52.2]} 9. Bg5 {[%clk 0:02:37.9]} 9... h6 {[%clk 0:02:49.4]}
10. Bh4 {[%clk 0:02:36.6]} 10... Ba6 {[%clk 0:02:47.5]} 11. Qe3 {[%clk 0:02:37]}
11... Nd7 {[%clk 0:02:47.7]} 12. g4 {[%clk 0:02:37.1]} 12... b5 {[%clk
0:02:38.2]} 13. Rg1 {[%clk 0:02:32.8]} 13... Nb6 {[%clk 0:01:55.2]} 14. g5
{[%clk 0:02:24.4]} 14... Ng6 {[%clk 0:01:40.8]} 15. Nf4 {[%clk 0:02:15.6]} 15...
Nxh4 {[%clk 0:01:36]} 16. gxh6 {[%clk 0:02:13.7]} 16... g6 {[%clk 0:01:33.7]}
17. exd5 {[%clk 0:01:53.4]} 17... Nxd5 {[%clk 0:01:27.9]} 18. Ncxd5 {[%clk
0:01:50.9]} 18... exd5 {[%clk 0:01:22.7]} 19. Qe5 {[%clk 0:00:47.8]} 19... f6
{[%clk 0:01:21.4]} 20. Qh5 {[%clk 0:00:46.6]} 20... g5 {[%clk 0:01:11.7]} 21.
Qxh4 {[%clk 0:00:17.1]} 21... Qe8 {[%clk 0:01:11]} 22. Kb1 {[%clk 0:00:12.7]}
22... Kh8 {[%clk 0:00:58.1]} 23. Qg4 {[%clk 0:00:13.3]} 23... Bc8 {[%clk
0:00:58]} 24. Qg2 {[%clk 0:00:13]} 24... Bd6 {[%clk 0:00:54.4]} 25. Nd3 {[%clk
0:00:13.2]} 25... Rg8 {[%clk 0:00:49.4]} 26. Nc5 {[%clk 0:00:11.1]} 26... Qg6
{[%clk 0:00:43.2]} 27. Bd3 {[%clk 0:00:11]} 27... Qxh6 {[%clk 0:00:44.5]} 28. h3
{[%clk 0:00:10.4]} 28... Ra7 {[%clk 0:00:42.9]} 29. h4 {[%clk 0:00:09.2]} 29...
Rag7 {[%clk 0:00:39.2]} 30. h5 {[%clk 0:00:08.6]} 30... g4 {[%clk 0:00:35.7]}
31. Bg6 {[%clk 0:00:09.1]} 31... g3 {[%clk 0:00:31.5]} 32. Nd3 {[%clk
0:00:08.9]} 32... Rxg6 {[%clk 0:00:31.3]} 33. hxg6 {[%clk 0:00:09.4]} 33... Qxg6
{[%clk 0:00:33.2]} 34. Rh1+ {[%clk 0:00:10]} 34... Kg7 {[%clk 0:00:34.6]} 35.
Rh4 {[%clk 0:00:10.5]} 35... Re8 {[%clk 0:00:32.2]} 36. Rdh1 {[%clk 0:00:10.9]}
36... Bf5 {[%clk 0:00:33.2]} 37. Rh7+ {[%clk 0:00:08.2]} 37... Qxh7 {[%clk
0:00:33.8]} 38. Rxh7+ {[%clk 0:00:09.6]} 38... Kxh7 {[%clk 0:00:35.1]} 39. a3
{[%clk 0:00:09.9]} 39... Kg6 {[%clk 0:00:32.9]} 40. f4 {[%clk 0:00:10.8]} 40...
Re3 {[%clk 0:00:31.6]} 41. Ka2 {[%clk 0:00:08.5]} 41... b4 {[%clk 0:00:30.4]}
42. Qg1 {[%clk 0:00:09.2]} 42... Rf3 {[%clk 0:00:24.2]} 43. Ne1 {[%clk
0:00:09.6]} 43... Rxf4 {[%clk 0:00:25]} 44. Qxg3+ {[%clk 0:00:10.3]} 44... Kf7
{[%clk 0:00:14.8]} 45. Ng2 {[%clk 0:00:10.5]} 45... Rxd4 {[%clk 0:00:11.1]} 46.
Qxd6 {[%clk 0:00:10.9]} 46... Bxc2 {[%clk 0:00:13]} 47. Qc7+ {[%clk 0:00:11.3]}
47... Kg6 {[%clk 0:00:14]} 48. Qb6 {[%clk 0:00:10.1]} 48... b3+ {[%clk
0:00:14.1]} 49. Qxb3 {[%clk 0:00:04.2]} 49... Bxb3+ {[%clk 0:00:16]} 50. Kxb3
{[%clk 0:00:05.3]} 50... Re4 {[%clk 0:00:17.6]} 51. Kc3 {[%clk 0:00:05.3]} 51...
f5 {[%clk 0:00:18.9]} 52. Kd3 {[%clk 0:00:06.1]} 52... Kg5 {[%clk 0:00:19.9]}
0-1

[Event "*** Titled Tuesday Blitz"]
[Site "Chess.com"]
[Date "2019.10.01"]
[Round "2"]
[White "Roenko_Artur"]
[Black "Alex_32167"]
[Result "0-1"]
[WhiteElo "2258"]
[BlackElo "2663"]
[TimeControl "180+2"]
[EndTime "13:24:10 PDT"]
[Termination "Alex_32167 won by resignation"]

1. e4 {[%clk 0:03:01.9]} 1... d5 {[%clk 0:03:01]} 2. exd5 {[%clk 0:03:00.5]}
2... Nf6 {[%clk 0:03:02]} 3. Bb5+ {[%clk 0:02:59.7]} 3... Bd7 {[%clk 0:03:02.9]}
4. Bc4 {[%clk 0:02:59.7]} 4... Bg4 {[%clk 0:03:03.6]} 5. Nf3 {[%clk 0:02:54]}
5... Nxd5 {[%clk 0:03:02.9]} 6. O-O {[%clk 0:02:54.3]} 6... e6 {[%clk
0:03:03.6]} 7. d4 {[%clk 0:02:51.6]} 7... Be7 {[%clk 0:03:03.2]} 8. Nc3 {[%clk
0:02:41.5]} 8... O-O {[%clk 0:03:02.2]} 9. Nxd5 {[%clk 0:02:33.7]} 9... exd5
{[%clk 0:03:02.5]} 10. Bd3 {[%clk 0:02:35]} 10... Nd7 {[%clk 0:02:59.2]} 11. c3
{[%clk 0:02:31.3]} 11... Bf6 {[%clk 0:02:57.4]} 12. Bf4 {[%clk 0:02:15.9]} 12...
c5 {[%clk 0:02:55.7]} 13. dxc5 {[%clk 0:02:06.7]} 13... Nxc5 {[%clk 0:02:55.9]}
14. Bc2 {[%clk 0:02:07.9]} 14... Ne6 {[%clk 0:02:52.4]} 15. Qd3 {[%clk
0:01:59.4]} 15... g6 {[%clk 0:02:51.5]} 16. Bh6 {[%clk 0:01:58.1]} 16... Re8
{[%clk 0:02:47.5]} 17. Bb3 {[%clk 0:01:44.9]} 17... Nc5 {[%clk 0:02:33.6]} 18.
Qxd5 {[%clk 0:01:42.1]} 18... Nxb3 {[%clk 0:02:34.4]} 19. Qxd8 {[%clk
0:01:34.8]} 19... Raxd8 {[%clk 0:02:31.7]} 20. axb3 {[%clk 0:01:35.7]} 20... a6
{[%clk 0:02:30.6]} 21. Rfe1 {[%clk 0:01:12.3]} 21... Be6 {[%clk 0:02:29.8]} 22.
b4 {[%clk 0:01:02]} 22... Rd5 {[%clk 0:02:16.2]} 23. Ra5 {[%clk 0:00:44.3]}
23... Red8 {[%clk 0:02:02.4]} 24. Rxd5 {[%clk 0:00:38.1]} 24... Rxd5 {[%clk
0:02:03.3]} 25. h3 {[%clk 0:00:28]} 25... Rh5 {[%clk 0:02:04]} 26. Be3 {[%clk
0:00:22.3]} 26... Rd5 {[%clk 0:01:59.6]} 27. Nd4 {[%clk 0:00:20.8]} 27... Bd7
{[%clk 0:01:57.1]} 28. Ra1 {[%clk 0:00:16.9]} 28... h5 {[%clk 0:01:44.7]} 29.
Ra5 {[%clk 0:00:17.2]} 29... Rd6 {[%clk 0:01:45.6]} 30. Bf4 {[%clk 0:00:17]}
30... Rb6 {[%clk 0:01:37.3]} 31. Bc7 {[%clk 0:00:17.5]} 31... Bxd4 {[%clk
0:01:38.4]} 32. cxd4 {[%clk 0:00:13.3]} 32... Rxb4 {[%clk 0:01:39.1]} 33. Rd5
{[%clk 0:00:14.2]} 33... Bb5 {[%clk 0:01:16.3]} 34. Rd8+ {[%clk 0:00:14.5]}
34... Kg7 {[%clk 0:01:17.1]} 35. d5 {[%clk 0:00:12.2]} 35... f6 {[%clk
0:01:13.1]} 36. d6 {[%clk 0:00:11.3]} 36... Rxb2 {[%clk 0:01:07.6]} 37. Rb8
{[%clk 0:00:10.6]} 37... Bc6 {[%clk 0:01:04]} 38. Rd8 {[%clk 0:00:08]} 38... Rd2
{[%clk 0:01:01.7]} 39. Rb8 {[%clk 0:00:06.8]} 39... Rd1+ {[%clk 0:00:59.7]} 40.
Kh2 {[%clk 0:00:07]} 40... h4 {[%clk 0:01:00.7]} 41. Rd8 {[%clk 0:00:06.5]}
41... g5 {[%clk 0:01:01]} 42. Rb8 {[%clk 0:00:07.1]} 42... Rd5 {[%clk
0:00:59.3]} 43. Rd8 {[%clk 0:00:07.6]} 43... a5 {[%clk 0:00:58.8]} 44. Ra8
{[%clk 0:00:06.6]} 44... a4 {[%clk 0:00:59.6]} 45. Ra7 {[%clk 0:00:04.7]} 45...
Rd2 {[%clk 0:00:58.5]} 46. f3 {[%clk 0:00:02.9]} 46... Bxf3 {[%clk 0:00:57.3]}
47. Kg1 {[%clk 0:00:03.9]} 47... Bc6 {[%clk 0:00:56]} 48. Ra5 {[%clk 0:00:04.1]}
48... Rxg2+ {[%clk 0:00:55.6]} 49. Kf1 {[%clk 0:00:04.9]} 49... Rd2 {[%clk
0:00:57.4]} 50. Ke1 {[%clk 0:00:05.4]} 50... Rd4 {[%clk 0:00:55.4]} 51. Rc5
{[%clk 0:00:06.1]} 51... Kg6 {[%clk 0:00:51.7]} 52. Ra5 {[%clk 0:00:06.9]} 52...
Rd3 {[%clk 0:00:51.4]} 53. Ke2 {[%clk 0:00:07.4]} 53... Rxh3 {[%clk 0:00:43.7]}
54. Rc5 {[%clk 0:00:07.2]} 54... Bd7 {[%clk 0:00:37.6]} 55. Bb6 {[%clk
0:00:07.4]} 55... Rb3 {[%clk 0:00:37.8]} 56. Ba5 {[%clk 0:00:07.2]} 56... b6
{[%clk 0:00:38.1]} 57. Rc7 {[%clk 0:00:06.2]} 57... Bg4+ {[%clk 0:00:39.1]} 58.
Kd2 {[%clk 0:00:06.3]} 58... bxa5 {[%clk 0:00:39.2]} 0-1